Workbook

Sheet À propos
B1: À propos du modèle
B2: Ce modèle permet d’effectuer le suivi de vos dépenses et votre épargne mensuelles.
B3: Entrez le détail des dépenses dans le tableau ainsi que votre revenu mensuel pour calculer votre épargne.
B4: Le graphique en anneau illustre les dépenses et l'épargne, et se met à jour automatiquement.
B5: Remarque :
B6: Des instructions supplémentaires sont fournies dans la colonne A de la feuille de calcul ROUE BUDGÉTAIRE. Ce texte a été intentionnellement masqué. Pour supprimer ce texte, sélectionnez la colonne A, puis sélectionnez SUPPRIMER. Pour afficher le texte, sélectionnez la colonne A, puis modifiez la couleur de la police.
B7: Pour en apprendre davantage sur le tableau, appuyez sur MAJ puis sur F10 dans le tableau, sélectionnez l'option TABLE, puis sélectionnez TEXTE DE REMPLACEMENT.

Sheet Roue budgétaire
A1: Cette feuille de calcul permet de créer une roue budgétaire. La cellule B1 contient son titre. La cellule C1 contient quelques informations sur son utilisation. Vous en trouverez d’autres dans cette colonne (A). Pour les consulter, appuyez sur la touche fléchée vers le bas de votre clavier. | B1: Roue budgétaire | D1: Remplissez le tableau dans ce modèle. Le graphique affichera vos dépenses mensuelles en relation avec votre revenu mensuel. Il calculera également les pourcentages pour vous montrer dans quelle mesure vous avez épargné.
A2: La cellule B1, à droite de celle-ci, contient l’étiquette Revenu mensuel. La cellule C2 contient le graphique en anneau représentant vos dépenses et votre épargne. Enfin, la cellule G2 contient l’étiquette Montant de l'épargne. | B2: Revenu mensuel | C2: Cette cellule contient le graphique en anneau représentant vos dépenses et votre épargne. | G2: Montant de l’épargne de l'épargne
A3: Entrez votre revenu mensuel dans la cellule B3. Le montant de votre épargne est calculé automatiquement et affiché dans la cellule G3. L’instruction suivante est dans la cellule A6. | B3: 5,738 € | G3: =Savings -> 2,777 €
G4: Valeur calculée automatiquement
A6: Entrez le détail de vos dépenses dans le tableau ci-contre. | B6: Dépenses | C6: Catégorie | D6: Montant | E6: Fréquence | F6: Montant mensuel | G6: % du Total
B7: Assurance | C7: Transport | D7: 300 € | E7: Tous les 6 mois | F7: =IF(Expenses[[#This Row],[Montant]]>0,IF(Expenses[[#This Row],[Fréquence]]<>"",ROUND(IF(Expenses[[#This Row],[Fréquence]]="Mensuelle",Expenses[Montant],IF(Expenses[[#This Row],[Fréquence]]="Hebdomadaire",Expenses[[#This Row],[Montant]]*4,IF(Expenses[[#This Row],[Fréquence]]="Trimestrielle",Expenses[[#This Row],[Montant]]/3,IF(Expenses[[#This Row],[Fréquence]]="Tous les 6 mois",Expenses[[#This Row],[Montant]]/6,IF(Expenses[[#This Row],[Fréquence]]="Annuelle",Expenses[[#This Row],[Montant]]/12,IF(Expenses[[#This Row],[Fréquence]]="Toutes les deux semaines",Expenses[[#This Row],[Montant]]*2,IF(Expenses[[#This Row],[Fréquence]]="Aux deux mois",Expenses[[#This Row],[Montant]]/2,""))))))),0),""),"") -> 50 € | G7: =IF(Expenses[[#This Row],[Montant mensuel]]<>"",Expenses[[#This Row],[Montant mensuel]]/Income,"") -> 1%
B8: Essence | C8: Transport | D8: 25 € | E8: Hebdomadaire | F8: =IF(Expenses[[#This Row],[Montant]]>0,IF(Expenses[[#This Row],[Fréquence]]<>"",ROUND(IF(Expenses[[#This Row],[Fréquence]]="Mensuelle",Expenses[Montant],IF(Expenses[[#This Row],[Fréquence]]="Hebdomadaire",Expenses[[#This Row],[Montant]]*4,IF(Expenses[[#This Row],[Fréquence]]="Trimestrielle",Expenses[[#This Row],[Montant]]/3,IF(Expenses[[#This Row],[Fréquence]]="Tous les 6 mois",Expenses[[#This Row],[Montant]]/6,IF(Expenses[[#This Row],[Fréquence]]="Annuelle",Expenses[[#This Row],[Montant]]/12,IF(Expenses[[#This Row],[Fréquence]]="Toutes les deux semaines",Expenses[[#This Row],[Montant]]*2,IF(Expenses[[#This Row],[Fréquence]]="Aux deux mois",Expenses[[#This Row],[Montant]]/2,""))))))),0),""),"") -> 100 € | G8: =IF(Expenses[[#This Row],[Montant mensuel]]<>"",Expenses[[#This Row],[Montant mensuel]]/Income,"") -> 2%
B9: Remboursement voiture | C9: Transport | D9: 200 € | E9: Mensuelle | F9: =IF(Expenses[[#This Row],[Montant]]>0,IF(Expenses[[#This Row],[Fréquence]]<>"",ROUND(IF(Expenses[[#This Row],[Fréquence]]="Mensuelle",Expenses[Montant],IF(Expenses[[#This Row],[Fréquence]]="Hebdomadaire",Expenses[[#This Row],[Montant]]*4,IF(Expenses[[#This Row],[Fréquence]]="Trimestrielle",Expenses[[#This Row],[Montant]]/3,IF(Expenses[[#This Row],[Fréquence]]="Tous les 6 mois",Expenses[[#This Row],[Montant]]/6,IF(Expenses[[#This Row],[Fréquence]]="Annuelle",Expenses[[#This Row],[Montant]]/12,IF(Expenses[[#This Row],[Fréquence]]="Toutes les deux semaines",Expenses[[#This Row],[Montant]]*2,IF(Expenses[[#This Row],[Fréquence]]="Aux deux mois",Expenses[[#This Row],[Montant]]/2,""))))))),0),""),"") -> 200 € | G9: =IF(Expenses[[#This Row],[Montant mensuel]]<>"",Expenses[[#This Row],[Montant mensuel]]/Income,"") -> 3%
B10: Prêt immobilier | C10: Logement | D10: 1,600 € | E10: Mensuelle | F10: =IF(Expenses[[#This Row],[Montant]]>0,IF(Expenses[[#This Row],[Fréquence]]<>"",ROUND(IF(Expenses[[#This Row],[Fréquence]]="Mensuelle",Expenses[Montant],IF(Expenses[[#This Row],[Fréquence]]="Hebdomadaire",Expenses[[#This Row],[Montant]]*4,IF(Expenses[[#This Row],[Fréquence]]="Trimestrielle",Expenses[[#This Row],[Montant]]/3,IF(Expenses[[#This Row],[Fréquence]]="Tous les 6 mois",Expenses[[#This Row],[Montant]]/6,IF(Expenses[[#This Row],[Fréquence]]="Annuelle",Expenses[[#This Row],[Montant]]/12,IF(Expenses[[#This Row],[Fréquence]]="Toutes les deux semaines",Expenses[[#This Row],[Montant]]*2,IF(Expenses[[#This Row],[Fréquence]]="Aux deux mois",Expenses[[#This Row],[Montant]]/2,""))))))),0),""),"") -> 1,600 € | G10: =IF(Expenses[[#This Row],[Montant mensuel]]<>"",Expenses[[#This Row],[Montant mensuel]]/Income,"") -> 28%
B11: Câble | C11: Logement | D11: 60 € | E11: Mensuelle | F11: =IF(Expenses[[#This Row],[Montant]]>0,IF(Expenses[[#This Row],[Fréquence]]<>"",ROUND(IF(Expenses[[#This Row],[Fréquence]]="Mensuelle",Expenses[Montant],IF(Expenses[[#This Row],[Fréquence]]="Hebdomadaire",Expenses[[#This Row],[Montant]]*4,IF(Expenses[[#This Row],[Fréquence]]="Trimestrielle",Expenses[[#This Row],[Montant]]/3,IF(Expenses[[#This Row],[Fréquence]]="Tous les 6 mois",Expenses[[#This Row],[Montant]]/6,IF(Expenses[[#This Row],[Fréquence]]="Annuelle",Expenses[[#This Row],[Montant]]/12,IF(Expenses[[#This Row],[Fréquence]]="Toutes les deux semaines",Expenses[[#This Row],[Montant]]*2,IF(Expenses[[#This Row],[Fréquence]]="Aux deux mois",Expenses[[#This Row],[Montant]]/2,""))))))),0),""),"") -> 60 € | G11: =IF(Expenses[[#This Row],[Montant mensuel]]<>"",Expenses[[#This Row],[Montant mensuel]]/Income,"") -> 1%
B12: Soirée cinéma | C12: Divertissement | D12: 70 € | E12: Mensuelle | F12: =IF(Expenses[[#This Row],[Montant]]>0,IF(Expenses[[#This Row],[Fréquence]]<>"",ROUND(IF(Expenses[[#This Row],[Fréquence]]="Mensuelle",Expenses[Montant],IF(Expenses[[#This Row],[Fréquence]]="Hebdomadaire",Expenses[[#This Row],[Montant]]*4,IF(Expenses[[#This Row],[Fréquence]]="Trimestrielle",Expenses[[#This Row],[Montant]]/3,IF(Expenses[[#This Row],[Fréquence]]="Tous les 6 mois",Expenses[[#This Row],[Montant]]/6,IF(Expenses[[#This Row],[Fréquence]]="Annuelle",Expenses[[#This Row],[Montant]]/12,IF(Expenses[[#This Row],[Fréquence]]="Toutes les deux semaines",Expenses[[#This Row],[Montant]]*2,IF(Expenses[[#This Row],[Fréquence]]="Aux deux mois",Expenses[[#This Row],[Montant]]/2,""))))))),0),""),"") -> 70 € | G12: =IF(Expenses[[#This Row],[Montant mensuel]]<>"",Expenses[[#This Row],[Montant mensuel]]/Income,"") -> 1%
B13: Baskets | C13: Divers | D13: 300 € | E13: Annuelle | F13: =IF(Expenses[[#This Row],[Montant]]>0,IF(Expenses[[#This Row],[Fréquence]]<>"",ROUND(IF(Expenses[[#This Row],[Fréquence]]="Mensuelle",Expenses[Montant],IF(Expenses[[#This Row],[Fréquence]]="Hebdomadaire",Expenses[[#This Row],[Montant]]*4,IF(Expenses[[#This Row],[Fréquence]]="Trimestrielle",Expenses[[#This Row],[Montant]]/3,IF(Expenses[[#This Row],[Fréquence]]="Tous les 6 mois",Expenses[[#This Row],[Montant]]/6,IF(Expenses[[#This Row],[Fréquence]]="Annuelle",Expenses[[#This Row],[Montant]]/12,IF(Expenses[[#This Row],[Fréquence]]="Toutes les deux semaines",Expenses[[#This Row],[Montant]]*2,IF(Expenses[[#This Row],[Fréquence]]="Aux deux mois",Expenses[[#This Row],[Montant]]/2,""))))))),0),""),"") -> 25 € | G13: =IF(Expenses[[#This Row],[Montant mensuel]]<>"",Expenses[[#This Row],[Montant mensuel]]/Income,"") -> 0%
B14: Nourriture chien | C14: Divers | D14: 60 € | E14: Mensuelle | F14: =IF(Expenses[[#This Row],[Montant]]>0,IF(Expenses[[#This Row],[Fréquence]]<>"",ROUND(IF(Expenses[[#This Row],[Fréquence]]="Mensuelle",Expenses[Montant],IF(Expenses[[#This Row],[Fréquence]]="Hebdomadaire",Expenses[[#This Row],[Montant]]*4,IF(Expenses[[#This Row],[Fréquence]]="Trimestrielle",Expenses[[#This Row],[Montant]]/3,IF(Expenses[[#This Row],[Fréquence]]="Tous les 6 mois",Expenses[[#This Row],[Montant]]/6,IF(Expenses[[#This Row],[Fréquence]]="Annuelle",Expenses[[#This Row],[Montant]]/12,IF(Expenses[[#This Row],[Fréquence]]="Toutes les deux semaines",Expenses[[#This Row],[Montant]]*2,IF(Expenses[[#This Row],[Fréquence]]="Aux deux mois",Expenses[[#This Row],[Montant]]/2,""))))))),0),""),"") -> 60 € | G14: =IF(Expenses[[#This Row],[Montant mensuel]]<>"",Expenses[[#This Row],[Montant mensuel]]/Income,"") -> 1%
B15: Assurance des animaux | C15: Divers | D15: 70 € | E15: Annuelle | F15: =IF(Expenses[[#This Row],[Montant]]>0,IF(Expenses[[#This Row],[Fréquence]]<>"",ROUND(IF(Expenses[[#This Row],[Fréquence]]="Mensuelle",Expenses[Montant],IF(Expenses[[#This Row],[Fréquence]]="Hebdomadaire",Expenses[[#This Row],[Montant]]*4,IF(Expenses[[#This Row],[Fréquence]]="Trimestrielle",Expenses[[#This Row],[Montant]]/3,IF(Expenses[[#This Row],[Fréquence]]="Tous les 6 mois",Expenses[[#This Row],[Montant]]/6,IF(Expenses[[#This Row],[Fréquence]]="Annuelle",Expenses[[#This Row],[Montant]]/12,IF(Expenses[[#This Row],[Fréquence]]="Toutes les deux semaines",Expenses[[#This Row],[Montant]]*2,IF(Expenses[[#This Row],[Fréquence]]="Aux deux mois",Expenses[[#This Row],[Montant]]/2,""))))))),0),""),"") -> 6 € | G15: =IF(Expenses[[#This Row],[Montant mensuel]]<>"",Expenses[[#This Row],[Montant mensuel]]/Income,"") -> 0%
B16: Provisions | C16: Aliments | D16: 100 € | E16: Hebdomadaire | F16: =IF(Expenses[[#This Row],[Montant]]>0,IF(Expenses[[#This Row],[Fréquence]]<>"",ROUND(IF(Expenses[[#This Row],[Fréquence]]="Mensuelle",Expenses[Montant],IF(Expenses[[#This Row],[Fréquence]]="Hebdomadaire",Expenses[[#This Row],[Montant]]*4,IF(Expenses[[#This Row],[Fréquence]]="Trimestrielle",Expenses[[#This Row],[Montant]]/3,IF(Expenses[[#This Row],[Fréquence]]="Tous les 6 mois",Expenses[[#This Row],[Montant]]/6,IF(Expenses[[#This Row],[Fréquence]]="Annuelle",Expenses[[#This Row],[Montant]]/12,IF(Expenses[[#This Row],[Fréquence]]="Toutes les deux semaines",Expenses[[#This Row],[Montant]]*2,IF(Expenses[[#This Row],[Fréquence]]="Aux deux mois",Expenses[[#This Row],[Montant]]/2,""))))))),0),""),"") -> 400 € | G16: =IF(Expenses[[#This Row],[Montant mensuel]]<>"",Expenses[[#This Row],[Montant mensuel]]/Income,"") -> 7%
B17: Café | C17: Aliments | D17: 25 € | E17: Hebdomadaire | F17: =IF(Expenses[[#This Row],[Montant]]>0,IF(Expenses[[#This Row],[Fréquence]]<>"",ROUND(IF(Expenses[[#This Row],[Fréquence]]="Mensuelle",Expenses[Montant],IF(Expenses[[#This Row],[Fréquence]]="Hebdomadaire",Expenses[[#This Row],[Montant]]*4,IF(Expenses[[#This Row],[Fréquence]]="Trimestrielle",Expenses[[#This Row],[Montant]]/3,IF(Expenses[[#This Row],[Fréquence]]="Tous les 6 mois",Expenses[[#This Row],[Montant]]/6,IF(Expenses[[#This Row],[Fréquence]]="Annuelle",Expenses[[#This Row],[Montant]]/12,IF(Expenses[[#This Row],[Fréquence]]="Toutes les deux semaines",Expenses[[#This Row],[Montant]]*2,IF(Expenses[[#This Row],[Fréquence]]="Aux deux mois",Expenses[[#This Row],[Montant]]/2,""))))))),0),""),"") -> 100 € | G17: =IF(Expenses[[#This Row],[Montant mensuel]]<>"",Expenses[[#This Row],[Montant mensuel]]/Income,"") -> 2%
B18: Matériel d'escalade | C18: Divertissement | D18: 170 € | E18: Annuelle | F18: =IF(Expenses[[#This Row],[Montant]]>0,IF(Expenses[[#This Row],[Fréquence]]<>"",ROUND(IF(Expenses[[#This Row],[Fréquence]]="Mensuelle",Expenses[Montant],IF(Expenses[[#This Row],[Fréquence]]="Hebdomadaire",Expenses[[#This Row],[Montant]]*4,IF(Expenses[[#This Row],[Fréquence]]="Trimestrielle",Expenses[[#This Row],[Montant]]/3,IF(Expenses[[#This Row],[Fréquence]]="Tous les 6 mois",Expenses[[#This Row],[Montant]]/6,IF(Expenses[[#This Row],[Fréquence]]="Annuelle",Expenses[[#This Row],[Montant]]/12,IF(Expenses[[#This Row],[Fréquence]]="Toutes les deux semaines",Expenses[[#This Row],[Montant]]*2,IF(Expenses[[#This Row],[Fréquence]]="Aux deux mois",Expenses[[#This Row],[Montant]]/2,""))))))),0),""),"") -> 14 € | G18: =IF(Expenses[[#This Row],[Montant mensuel]]<>"",Expenses[[#This Row],[Montant mensuel]]/Income,"") -> 0%
B19: Abonnement club de sport | C19: Divers | D19: 60 € | E19: Mensuelle | F19: =IF(Expenses[[#This Row],[Montant]]>0,IF(Expenses[[#This Row],[Fréquence]]<>"",ROUND(IF(Expenses[[#This Row],[Fréquence]]="Mensuelle",Expenses[Montant],IF(Expenses[[#This Row],[Fréquence]]="Hebdomadaire",Expenses[[#This Row],[Montant]]*4,IF(Expenses[[#This Row],[Fréquence]]="Trimestrielle",Expenses[[#This Row],[Montant]]/3,IF(Expenses[[#This Row],[Fréquence]]="Tous les 6 mois",Expenses[[#This Row],[Montant]]/6,IF(Expenses[[#This Row],[Fréquence]]="Annuelle",Expenses[[#This Row],[Montant]]/12,IF(Expenses[[#This Row],[Fréquence]]="Toutes les deux semaines",Expenses[[#This Row],[Montant]]*2,IF(Expenses[[#This Row],[Fréquence]]="Aux deux mois",Expenses[[#This Row],[Montant]]/2,""))))))),0),""),"") -> 60 € | G19: =IF(Expenses[[#This Row],[Montant mensuel]]<>"",Expenses[[#This Row],[Montant mensuel]]/Income,"") -> 1%
B20: Écouteurs | C20: Divertissement | D20: 50 € | E20: Annuelle | F20: =IF(Expenses[[#This Row],[Montant]]>0,IF(Expenses[[#This Row],[Fréquence]]<>"",ROUND(IF(Expenses[[#This Row],[Fréquence]]="Mensuelle",Expenses[Montant],IF(Expenses[[#This Row],[Fréquence]]="Hebdomadaire",Expenses[[#This Row],[Montant]]*4,IF(Expenses[[#This Row],[Fréquence]]="Trimestrielle",Expenses[[#This Row],[Montant]]/3,IF(Expenses[[#This Row],[Fréquence]]="Tous les 6 mois",Expenses[[#This Row],[Montant]]/6,IF(Expenses[[#This Row],[Fréquence]]="Annuelle",Expenses[[#This Row],[Montant]]/12,IF(Expenses[[#This Row],[Fréquence]]="Toutes les deux semaines",Expenses[[#This Row],[Montant]]*2,IF(Expenses[[#This Row],[Fréquence]]="Aux deux mois",Expenses[[#This Row],[Montant]]/2,""))))))),0),""),"") -> 4 € | G20: =IF(Expenses[[#This Row],[Montant mensuel]]<>"",Expenses[[#This Row],[Montant mensuel]]/Income,"") -> 0%
B21: Coupe de cheveux | C21: Divers | D21: 70 € | E21: Mensuelle | F21: =IF(Expenses[[#This Row],[Montant]]>0,IF(Expenses[[#This Row],[Fréquence]]<>"",ROUND(IF(Expenses[[#This Row],[Fréquence]]="Mensuelle",Expenses[Montant],IF(Expenses[[#This Row],[Fréquence]]="Hebdomadaire",Expenses[[#This Row],[Montant]]*4,IF(Expenses[[#This Row],[Fréquence]]="Trimestrielle",Expenses[[#This Row],[Montant]]/3,IF(Expenses[[#This Row],[Fréquence]]="Tous les 6 mois",Expenses[[#This Row],[Montant]]/6,IF(Expenses[[#This Row],[Fréquence]]="Annuelle",Expenses[[#This Row],[Montant]]/12,IF(Expenses[[#This Row],[Fréquence]]="Toutes les deux semaines",Expenses[[#This Row],[Montant]]*2,IF(Expenses[[#This Row],[Fréquence]]="Aux deux mois",Expenses[[#This Row],[Montant]]/2,""))))))),0),""),"") -> 70 € | G21: =IF(Expenses[[#This Row],[Montant mensuel]]<>"",Expenses[[#This Row],[Montant mensuel]]/Income,"") -> 1%
B22: Jeux vidéo | C22: Divertissement | D22: 100 € | E22: Mensuelle | F22: =IF(Expenses[[#This Row],[Montant]]>0,IF(Expenses[[#This Row],[Fréquence]]<>"",ROUND(IF(Expenses[[#This Row],[Fréquence]]="Mensuelle",Expenses[Montant],IF(Expenses[[#This Row],[Fréquence]]="Hebdomadaire",Expenses[[#This Row],[Montant]]*4,IF(Expenses[[#This Row],[Fréquence]]="Trimestrielle",Expenses[[#This Row],[Montant]]/3,IF(Expenses[[#This Row],[Fréquence]]="Tous les 6 mois",Expenses[[#This Row],[Montant]]/6,IF(Expenses[[#This Row],[Fréquence]]="Annuelle",Expenses[[#This Row],[Montant]]/12,IF(Expenses[[#This Row],[Fréquence]]="Toutes les deux semaines",Expenses[[#This Row],[Montant]]*2,IF(Expenses[[#This Row],[Fréquence]]="Aux deux mois",Expenses[[#This Row],[Montant]]/2,""))))))),0),""),"") -> 100 € | G22: =IF(Expenses[[#This Row],[Montant mensuel]]<>"",Expenses[[#This Row],[Montant mensuel]]/Income,"") -> 2%
B23: Vêtements | C23: Divers | D23: 500 € | E23: Annuelle | F23: =IF(Expenses[[#This Row],[Montant]]>0,IF(Expenses[[#This Row],[Fréquence]]<>"",ROUND(IF(Expenses[[#This Row],[Fréquence]]="Mensuelle",Expenses[Montant],IF(Expenses[[#This Row],[Fréquence]]="Hebdomadaire",Expenses[[#This Row],[Montant]]*4,IF(Expenses[[#This Row],[Fréquence]]="Trimestrielle",Expenses[[#This Row],[Montant]]/3,IF(Expenses[[#This Row],[Fréquence]]="Tous les 6 mois",Expenses[[#This Row],[Montant]]/6,IF(Expenses[[#This Row],[Fréquence]]="Annuelle",Expenses[[#This Row],[Montant]]/12,IF(Expenses[[#This Row],[Fréquence]]="Toutes les deux semaines",Expenses[[#This Row],[Montant]]*2,IF(Expenses[[#This Row],[Fréquence]]="Aux deux mois",Expenses[[#This Row],[Montant]]/2,""))))))),0),""),"") -> 42 € | G23: =IF(Expenses[[#This Row],[Montant mensuel]]<>"",Expenses[[#This Row],[Montant mensuel]]/Income,"") -> 1%

Sheet Data (hidden)
A1: Cette feuille devrait rester cachée
A2: Catégories | B2: Montant par catégorie | C2: Pourcentage du total | D2: Fréquence | E2: Économies
A3: Logement | B3: =IF(SUMIF(Expenses[Catégorie],"Logement",Expenses[Montant mensuel])>0,SUMIF(Expenses[Catégorie],"Logement",Expenses[Montant mensuel]),NA()) -> 1,660 € | C3: =IF(B3>0,B3/Income,"") -> 29% | D3: Hebdomadaire | E3: =Income-SUM(Expenses[Montant mensuel]) -> 2,777 €
A4: Divertissement | B4: =IF(SUMIF(Expenses[Catégorie],"Divertissement",Expenses[Montant mensuel])>0,SUMIF(Expenses[Catégorie],"Divertissement",Expenses[Montant mensuel]),NA()) -> 188 € | C4: 3% | D4: Mensuelle
A5: Transport | B5: =IF(SUMIF(Expenses[Catégorie],"Transport",Expenses[Montant mensuel])>0,SUMIF(Expenses[Catégorie],"Transport",Expenses[Montant mensuel]),NA()) -> 350 € | C5: 6% | D5: Trimestrielle
A6: Aliments | B6: =IF(SUMIF(Expenses[Catégorie],"Aliments",Expenses[Montant mensuel])>0,SUMIF(Expenses[Catégorie],"Aliments",Expenses[Montant mensuel]),NA()) -> 500 € | C6: 9% | D6: Tous les 6 mois
A7: Divers | B7: =IF(SUMIF(Expenses[Catégorie],"Divers",Expenses[Montant mensuel])>0,SUMIF(Expenses[Catégorie],"Divers",Expenses[Montant mensuel]),NA()) -> 263 € | C7: 5% | D7: Annuelle
A8: Économies | B8: =IF(E3>0,E3,NA()) -> 2,777 € | C8: 48% | D8: Toutes les 2 semaines
D9: Tous les 2 mois
B10: TOTAL: | C10: =SUM(C3:C8) -> 100%
